[Event "45th FIDE Olympiad 2024"]
[Site "Budapest"]
[Date "2024.09.15"]
[Round "5.18"]
[White "Christiansen, Johan-Sebastian"]
[Black "Gurel, Ediz"]
[Result "1/2-1/2"]
[ECO "A14"]
[WhiteElo "2661"]
[BlackElo "2602"]
[Annotator "TA"]
[PlyCount "55"]
[EventDate "2024.09.05"]
[EventType "team-tourn"]
[EventCountry "HUN"]
[SourceTitle "playchess.com"]
[Source "ChessBase"]
[SourceQuality "1"]
[WhiteTeam "Norway"]
[BlackTeam "Turkiye"]
[WhiteTeamCountry "NOR"]
[TimeControl "40/5400+30:1800+30"]

{[%evp 11,55,14,7,-13,10,16,0,0,41,31,35,38,93,94,80,91,89,83,91,94,96,9,130,138,131,146,131,134,128,0,0,0,0,0,0,-29999,0,0,0,0,0,0,0,0,0,0]} 1. Nf3 {[%emt 0:01:20]} d5 {[%emt 0:00:45]} 2. c4 {[%emt 0:00:09]} e6 {[%emt 0:03:15]} 3. g3 {[%emt 0:00:16]} Nf6 {[%emt 0:00:31]} 4. Bg2 {[%emt 0:00:07]} Be7 {[%emt 0:02:54]} 5. O-O {[%emt 0:00:08]} O-O {[%emt 0:00:04]} 6. d3 {[%emt 0:00:10]} c5 {[%emt 0:02:17]} 7. Ne5 {[%emt 0:00:03]} Bd6 {[%emt 0:04:44]} 8. f4 {[%emt 0:01:22]} Bxe5 {[%emt 0:11:20]} 9. fxe5 {[%emt 0:00:08]} Ng4 {[%emt 0:00:05]} 10. Bf4 {[%emt 0:17:34]} d4 {[%emt 0:18:45][%cal Bd5d4,Bd4e3][%mdl 32]} 11. Nd2 {[%emt 0:34:45]} Ne3 {[%emt 0:12:29]} (11... Nd7 $14) 12. Bxe3 $16 {[%emt 0:00:11]} dxe3 {[%emt 0:00:04]} 13. Nf3 {[%emt 0:09:04]} Nc6 {[%emt 0:00:17]} 14. Qc1 {[%emt 0:00:54]} Nd4 {[%emt 0:00:05]} 15. Nxd4 {[%emt 0:04:25]} ({Don't play} 15. Qxe3 Nc2 16. Qxc5 Nxa1 $11) 15... cxd4 {[%emt 0:00:30]} 16. Rf4 {[%emt 0:03:32]} (16. c5 $1 $16) 16... g5 {[%emt 0:01:41]} (16... f5 $11 {keeps the balance.}) 17. Rf6 {[%emt 0:09:17]} Qc7 {[%emt 0:08:47]} 18. Qf1 $1 {[%emt 0:00:12] Threatens to win with Be4.} Qxe5 {[%emt 0:00:07] [#] ...Kg7 is the strong threat.} 19. Qf3 $1 {[%emt 0:00:16] aiming for Rf1.} h5 {[%emt 0:01:17] [#]} 20. h3 {[%emt 0:12:23]} ({Of course not} 20. Rf1 $6 g4 21. Qf4 (21. Rg6+ $2 Kh7 $19) 21... Qxf4 22. R6xf4 e5 $11) (20. Bh3 $1 $16 {[%cal Oa1f1] And now Rf1! would win.} Bd7 21. Rf1) 20... Bd7 $11 {[%emt 0:00:32] Hoping for ...Bc6.} 21. Rf1 {[%emt 0:00:07]} Bc6 {[%emt 0:01:04]} 22. Qxh5 {[%emt 0:00:15][%cal Of1f4] White wants to mate with R1f4!} Qxg3 {[%emt 0:00:05][%csl Gc6][%cal Rg3g2]} 23. Rxe6 $2 {[%mdl 8192]} fxe6 $2 (23... Qxg2# {mates}) 24. Qg6+ {[%emt 0:02:37] The position is equal.} Kh8 {[%emt 0:00:07][%csl Gc6][%cal Rg3g2]} 25. Qh6+ {[%emt 0:00:06]} Kg8 {[%emt 0:00:03][%csl Gc6][%cal Rg3g2]} 26. Qg6+ {[%emt 0:00:04]} Kh8 {[%emt 0:00:03][%csl Gc6][%cal Rg3g2]} 27. Qh6+ {[%emt 0:00:04]} Kg8 {[%emt 0:00:03][%csl Gc6][%cal Rg3g2]} 28. Qg6+ {[%emt 0:00:04] Weighted Error Value: White=0.36/Black=0.48.  Loses game:     	White=1     	---        Missed win:     	---       	Black=1      Mistake:       	White=2     	Black=2      Inaccurate:     	---       	Black=1      OK:         	White=8     	Black=4      Best:        	White=3     	Black=4      Strong:       	White=2     	---} 1/2-1/2

[Event "45th FIDE Olympiad 2024"]
[Site "Budapest"]
[Date "2024.09.15"]
[Round "5.18"]
[White "Dacres, Don"]
[Black "Corbin, Philip"]
[Result "0-1"]
[ECO "B22"]
[WhiteElo "1863"]
[BlackElo "1916"]
[PlyCount "92"]
[EventDate "2024.09.05"]
[EventType "team-tourn"]
[EventCountry "HUN"]
[WhiteTeam "Bermuda"]
[BlackTeam "Barbados"]
[WhiteTeamCountry "BER"]
[BlackTeamCountry "BAR"]
[TimeControl "40/5400+30:1800+30"]

1. e4 c5 2. Nf3 Nc6 3. c3 Nf6 4. e5 Nd5 5. d4 cxd4 6. cxd4 g6 7. Nc3 Nxc3 8. bxc3 Bg7 9. Be2 O-O 10. O-O d5 11. a4 Qc7 12. h3 Na5 13. Ra3 Bd7 14. Bb5 Nc4 15. Rb3 Rfb8 16. Nd2 Na5 17. Ra3 a6 18. Bxd7 Qxd7 19. f4 e6 20. Ra2 Rc8 21. Rf3 Bf8 22. Ba3 Bxa3 23. Rxa3 Nc4 24. Nxc4 Rxc4 25. Kf1 Rac8 26. Rd3 Qe7 27. Qb3 b5 28. axb5 axb5 29. g3 b4 30. cxb4 Rxb4 31. Qd1 Rxd4 32. Qa1 Rxd3 33. Rxd3 Qc5 34. Ra3 Qc4+ 35. Kg1 Kg7 36. Ra8 Rc5 37. Qa3 d4 38. Ra4 Qc2 39. Rxd4 Qb1+ 40. Kf2 Rc2+ 41. Kf3 Qf1+ 42. Kg4 Rh2 43. Rd8 Qe2+ 44. Qf3 h5+ 45. Kg5 Qxf3 46. g4 Rxh3 {0-} 0-1

[Event "45th FIDE Olympiad 2024"]
[Site "Budapest"]
[Date "2024.09.15"]
[Round "5.19"]
[White "Erdogmus, Yagiz Kaan"]
[Black "Tari, Aryan"]
[Result "0-1"]
[ECO "C54"]
[WhiteElo "2592"]
[BlackElo "2642"]
[Annotator "TA"]
[PlyCount "114"]
[EventDate "2024.09.05"]
[EventType "team-tourn"]
[EventCountry "HUN"]
[SourceTitle "playchess.com"]
[Source "ChessBase"]
[SourceQuality "1"]
[WhiteTeam "Turkiye"]
[BlackTeam "Norway"]
[BlackTeamCountry "NOR"]
[TimeControl "40/5400+30:1800+30"]

{[%evp 28,114,0,0,0,0,-8,0,0,0,0,0,0,0,0,0,0,0,12,0,0,0,0,0,0,0,0,0,0,0,0,-2,0,0,0,0,0,0,0,-37,-54,-72,-68,-76,-76,-75,-75,-74,-75,-72,-44,-43,-31,-46,-52,-42,-58,-73,-76,-75,-73,-273,-273,-506,-493,-476,-510,-485,-467,-518,-489,-1301,-1181,-1008,-955,-29971,-29972,-29972,-29973,-29972,-29973,-29972,-29973,-29972,-29973,-29995,-29992,-29998,-29998]} 1. e4 {[%emt 0:00:03]} e5 {[%emt 0:02:17]} 2. Nf3 {[%emt 0:00:07]} Nc6 {[%emt 0:00:05]} 3. Bc4 {[%emt 0:00:05]} Nf6 {[%emt 0:00:04]} 4. d3 {[%emt 0:00:03]} Bc5 {[%emt 0:00:07]} 5. c3 {[%emt 0:00:23]} d6 {[%emt 0:00:17]} 6. O-O {[%emt 0:00:31]} a5 {[%emt 0:00:41] C54: Giuoco Piano: 4 c3 Nf6, main lines with 5 d4 and 5 d3.} 7. Re1 {[%emt 0:01:30]} Ba7 {[%emt 0:01:15]} 8. Nbd2 {[%emt 0:04:01]} Be6 $5 {[%emt 0:02:15][%mdl 4] An interesting side line.} 9. Bb5 {[%emt 0:06:17]} O-O {[%emt 0:00:11]} 10. h3 {[%emt 0:00:52]} Ne7 {[%emt 0:00:34]} 11. d4 {[%emt 0:01:49]} Ng6 {[%emt 0:02:04]} 12. Nf1 {[%emt 0:02:45]} exd4 {[%emt 0:04:52]} 13. cxd4 {[%emt 0:02:59]} d5 {[%emt 0:00:07]} 14. e5 {[%emt 0:06:20]} Ne4 {[%emt 0:00:10]} 15. Ng3 {[%emt 0:17:46]} Nh4 {[%emt 0:14:41]} 16. Nxh4 {[%emt 0:13:55]} Qxh4 {[%emt 0:00:31]} 17. Nxe4 {[%emt 0:00:58]} dxe4 {[%emt 0:00:07]} 18. g3 $146 {[%emt 0:03:28]} ({Predecessor:} 18. Be3 Rad8 19. Qa4 c6 20. Bf1 Rd5 21. Rad1 f5 22. exf6 Qxf6 23. Bc4 b5 24. Qxa5 bxc4 25. Qxa7 {0-1 Fitzsimons,D (2342)-Makkar,R (2426) London Mindsports IM-A 2023 (3)}) 18... Qxh3 {[%emt 0:08:43]} 19. Rxe4 {[%emt 0:00:43]} Bd5 {[%emt 0:04:07]} 20. Bf1 {[%emt 0:00:14]} Qe6 {[%emt 0:04:09]} 21. Rh4 {[%emt 0:00:56]} f5 {[%emt 0:02:29]} 22. Qh5 {[%emt 0:06:56]} Qg6 {[%emt 0:02:17]} 23. Qxg6 {[%emt 0:00:41]} hxg6 {[%emt 0:00:09]} 24. Bg2 {[%emt 0:03:35]} Bxg2 {[%emt 0:07:25]} 25. Kxg2 {[%emt 0:00:02]} Rad8 {[%emt 0:00:06]} 26. Be3 {[%emt 0:03:28]} Rd5 {[%emt 0:01:23]} 27. Rc1 {[%emt 0:06:48]} c6 {[%emt 0:00:42]} 28. Rc4 {[%emt 0:03:56]} Kf7 {[%emt 0:04:35]} 29. Bg5 {[%emt 0:01:47]} Rc8 {[%emt 0:01:03]} 30. a4 {[%emt 0:00:23]} Rc7 {[%emt 0:00:58]} 31. b4 {[%emt 0:03:10]} axb4 {[%emt 0:04:07]} 32. Rxb4 {[%emt 0:00:07]} Rcd7 {[%emt 0:01:12]} 33. Be3 {[%emt 0:01:13]} g5 {[%emt 0:03:20]} 34. Bxg5 {[%emt 0:00:09]} Bxd4 {[%emt 0:02:23]} 35. f4 {[%emt 0:01:21]} Bc5 {[%emt 0:01:43]} 36. Rb2 {[%emt 0:02:58]} Rd2+ {[%emt 0:02:41]} 37. Rxd2 {[%emt 0:00:04]} Rxd2+ {[%emt 0:00:03]} 38. Kf1 {[%emt 0:01:36]} Rf2+ {[%emt 0:11:10]} 39. Ke1 {[%emt 0:00:04]} Ra2 {[%emt 0:00:47]} 40. Rh8 {[%emt 0:00:11]} Rxa4 {[%emt 0:01:59]} 41. Rc8 {[%emt 0:33:24]} Ke6 {[%emt 0:37:45]} 42. Rc7 {[%emt 0:01:57]} b5 {[%emt 0:00:00]} 43. Rxc6+ {[%emt 0:00:00]} Kd5 {[%emt 0:00:00]} 44. Rc8 $2 {[%emt 0:00:00]} (44. Rc7 $17 {was the only defense.}) 44... b4 $1 $19 {[%emt 0:00:00]} 45. Kd2 $2 {[%emt 0:00:00]} (45. Rb8) 45... Ra2+ $19 {[%emt 0:00:00]} 46. Kd3 {[%emt 0:00:00]} Ra3+ {[%emt 0:00:00]} 47. Kd2 {[%emt 0:00:00] [#]} Be3+ $1 {[%emt 0:00:00]} (47... Rxg3 48. e6 Rc3 (48... Be3+ 49. Ke2 $14) 49. Re8 $17) 48. Kc2 {[%emt 0:00:00]} Bd4 {[%emt 0:00:00]} 49. Rd8+ {[%emt 0:00:37]} (49. Rb8 $142 Rc3+ (49... Rxg3 50. Rxb4 Bxe5 51. Rb5+ Kd4 52. fxe5 $11) 50. Kd1) 49... Ke4 $19 {[%emt 0:00:00]} 50. Rb8 {[%emt 0:00:40]} Rc3+ {[%emt 0:00:00]} (50... Rxg3 51. e6 $17) 51. Kd2 {[%emt 0:00:50]} Be3+ {[%emt 0:00:00]} (51... Rxg3 52. Rxb4 Rg2+ 53. Ke1 $11) 52. Ke2 {[%emt 0:00:52]} Rc2+ {[%emt 0:00:00]} 53. Kd1 {[%emt 0:00:34]} Rd2+ {[%emt 0:00:00]} 54. Ke1 {[%emt 0:00:06] [#]} Rb2 $1 {[%emt 0:00:00]} 55. Be7 {[%emt 0:04:00]} Kf3 {[%emt 0:00:00]} 56. Rd8 {[%emt 0:00:42]} b3 {[%emt 0:00:00]} 57. Ba3 {[%emt 0:00:33]} Rh2 {[%emt 0:00:00]} 0-1

[Event "45th FIDE Olympiad 2024"]
[Site "Budapest"]
[Date "2024.09.15"]
[Round "5.19"]
[White "Edwards, Emar"]
[Black "Gontcharov, Dimitri"]
[Result "1-0"]
[ECO "B82"]
[WhiteElo "1898"]
[BlackElo "1653"]
[PlyCount "63"]
[EventDate "2024.09.05"]
[EventType "team-tourn"]
[EventCountry "HUN"]
[WhiteTeam "Barbados"]
[BlackTeam "Bermuda"]
[WhiteTeamCountry "BAR"]
[BlackTeamCountry "BER"]
[TimeControl "40/5400+30:1800+30"]

1. e4 c5 2. Nf3 e6 3. d4 cxd4 4. Nxd4 a6 5. Bd3 Qc7 6. Nc3 Nf6 7. Qe2 d6 8. f4 Nbd7 9. g4 h6 10. Bd2 b5 11. a3 Bb7 12. g5 hxg5 13. fxg5 Nh5 14. g6 Ne5 15. gxf7+ Qxf7 16. O-O-O Nf4 17. Bxf4 Qxf4+ 18. Kb1 Nxd3 19. Rxd3 Qe5 20. Qg4 Rh6 21. Rf1 Be7 22. Nf3 Qf6 23. Qg1 O-O-O 24. Qa7 Rd7 25. e5 Bxf3 26. Qxd7+ Kxd7 27. exf6 Bxf6 28. Rdxf3 Rxh2 29. Ne4 Bd4 30. Rf7+ Kc6 31. Ng5 e5 32. Nf3 1-0

[Event "45th FIDE Olympiad 2024"]
[Site "Budapest"]
[Date "2024.09.15"]
[Round "5.20"]
[White "Urkedal, Frode Olav Olsen"]
[Black "Sanal, Vahap"]
[Result "1-0"]
[ECO "E17"]
[WhiteElo "2546"]
[BlackElo "2581"]
[Annotator "RC"]
[PlyCount "121"]
[EventDate "2024.09.05"]
[EventType "team-tourn"]
[EventCountry "HUN"]
[SourceTitle "playchess.com"]
[Source "ChessBase"]
[SourceQuality "1"]
[WhiteTeam "Norway"]
[BlackTeam "Turkiye"]
[WhiteTeamCountry "NOR"]
[TimeControl "40/5400+30:1800+30"]

1. d4 {[%emt 0:01:18]} Nf6 {[%emt 0:00:07]} 2. c4 {[%emt 0:00:06]} e6 {[%emt 0:00:04]} 3. Nf3 {[%emt 0:00:21]} b6 {[%emt 0:00:15]} 4. g3 {[%emt 0:00:36]} Bb7 {[%emt 0:00:06]} 5. Bg2 {[%emt 0:00:21]} Be7 {[%emt 0:00:07]} 6. Nc3 {[%emt 0:00:22]} Ne4 {[%emt 0:03:03]} 7. Bd2 {[%emt 0:01:28]} d6 {[%emt 0:05:25]} 8. d5 {[%emt 0:02:51]} Nxd2 {[%emt 0:02:28]} 9. Nxd2 {[%emt 0:01:44]} Nd7 {[%emt 0:06:35]} 10. f4 {[%emt 0:00:07]} e5 {[%emt 0:01:39]} 11. f5 {[%emt 0:00:23]} a6 {[%emt 0:03:43]} 12. Nde4 {[%emt 0:06:30]} Nf6 {[%emt 0:00:53]} 13. O-O {[%emt 0:06:17]} Bc8 {[%emt 0:03:48]} 14. b4 {[%emt 0:11:59]} a5 {[%emt 0:07:37]} 15. b5 {[%emt 0:02:34]} Bd7 {[%emt 0:02:18]} 16. Qd2 {[%emt 0:03:49]} Qc8 {[%emt 0:02:19]} 17. Nxf6+ {[%emt 0:05:17]} Bxf6 {[%emt 0:00:19]} 18. Ne4 {[%emt 0:00:09]} Qd8 {[%emt 0:09:28]} 19. a4 {[%emt 0:03:02]} h6 {[%emt 0:06:22]} 20. Ra3 {[%emt 0:00:46]} Qe7 {[%emt 0:02:25]} 21. c5 {[%emt 0:07:18]} bxc5 {[%emt 0:01:07]} 22. Nxc5 {[%emt 0:00:08]} e4 {[%emt 0:05:32]} 23. Nxe4 {[%emt 0:00:09]} Be5 {[%emt 0:00:07]} 24. Raf3 {[%emt 0:08:07]} Qd8 {[%emt 0:00:53]} 25. f6 {[%emt 0:07:12]} g6 {[%emt 0:00:24]} 26. Nf2 {[%emt 0:03:24]} Qb8 {[%emt 0:01:40]} 27. Nd3 {[%emt 0:04:10]} Bd4+ {[%emt 0:01:27]} 28. Kh1 {[%emt 0:00:27]} Qa7 {[%emt 0:00:11]} 29. Nb2 {[%emt 0:04:03]} Bc5 {[%emt 0:10:47]} 30. Nc4 {[%emt 0:01:19]} Kf8 {[%emt 0:04:00]} 31. Rf4 {[%emt 0:02:51]} Bb4 {[%emt 0:00:42]} 32. Qd3 {[%emt 0:00:26]} Re8 {[%emt 0:00:19]} 33. Re4 {[%emt 0:00:28]} Qb8 {[%emt 0:01:04]} 34. Rff4 {[%emt 0:08:04]} Rxe4 {[%emt 0:02:01]} 35. Qxe4 {[%emt 0:03:30]} Qd8 {[%emt 0:00:39]} 36. Qd4 {[%emt 0:00:55]} Bf5 {[%emt 0:04:56]} 37. Be4 {[%emt 0:01:57]} Bd7 {[%emt 0:00:42]} 38. Bf3 {[%emt 0:02:33]} Bf5 {[%emt 0:01:44]} 39. Be4 {[%emt 0:01:21]} Bd7 {[%emt 0:00:17]} 40. Bc2 {[%emt 0:01:08]} Bc5 {[%emt 0:06:32]} 41. Qc3 {[%emt 0:30:18]} Bb4 {[%emt 0:30:10]} 42. Qf3 {[%emt 0:00:00]} h5 {[%emt 0:00:00]} 43. h4 {[%emt 0:00:00]} Bg4 {[%emt 0:00:00]} 44. Qe3 {[%emt 0:00:00]} Bc5 {[%emt 0:00:00]} 45. Qe4 {[%emt 0:00:00]} Bb4 {[%emt 0:00:00]} 46. Qe3 {[%emt 0:00:00]} Bc5 {[%emt 0:00:00]} 47. Qd3 {[%emt 0:00:00]} Bb4 {[%emt 0:00:00]} 48. Ne3 {[%emt 0:00:00]} Bc8 {[%emt 0:00:00]} 49. Nd1 {[%emt 0:00:00]} Bf5 {[%emt 0:00:00]} 50. Qc4 {[%emt 0:00:00]} Bd2 {[%emt 0:00:00]} 51. e3 {[%emt 0:00:00]} Bg4 {[%emt 0:05:08]} 52. Qd4 {[%emt 0:00:00]} Bb4 {[%emt 0:02:17]} 53. Nf2 {[%emt 0:00:00]} Bc8 {[%emt 0:00:07]} 54. Ne4 {[%emt 0:00:00]} Bf5 {[%emt 0:00:57]} 55. Bd3 {[%emt 0:00:00]} Qe8 {[%emt 0:01:26]} 56. Qa7 {[%emt 0:00:00]} Qd8 {[%emt 0:01:57]} 57. Qd4 {[%emt 0:00:00]} Qe8 {[%emt 0:00:03]} 58. Kh2 {[%emt 0:00:00]} Kg8 {[%emt 0:01:18]} 59. Qc4 {[%emt 0:00:00]} Qe5 {[%emt 0:01:41]} 60. Qxc7 {[%emt 0:00:00]} Bxe4 {[%emt 0:00:29]} 61. Bxe4 {[%emt 0:00:18]} 1-0

[Event "45th FIDE Olympiad 2024"]
[Site "Budapest"]
[Date "2024.09.15"]
[Round "5.20"]
[White "Dennis, Nathan"]
[Black "Depradine, Lawrence"]
[Result "0-1"]
[ECO "E12"]
[WhiteElo "1828"]
[BlackElo "1782"]
[PlyCount "116"]
[EventDate "2024.09.05"]
[EventType "team-tourn"]
[EventCountry "HUN"]
[WhiteTeam "Bermuda"]
[BlackTeam "Barbados"]
[WhiteTeamCountry "BER"]
[BlackTeamCountry "BAR"]
[TimeControl "40/5400+30:1800+30"]

1. d4 Nf6 2. Nf3 b6 3. c4 e6 4. Nc3 Bb4 5. Bg5 Bb7 6. e3 O-O 7. Be2 d6 8. O-O Bxc3 9. bxc3 Nbd7 10. Nd2 c5 11. Rc1 Qc7 12. f4 Rae8 13. Bf3 Qb8 14. Qc2 Qa8 15. Bxb7 Qxb7 16. Rf3 d5 17. Rg3 Kh8 18. Rh3 Ne4 19. Nxe4 dxe4 20. Qf2 f5 21. Qh4 Nf6 22. Bxf6 gxf6 23. Rd1 Qf7 24. a4 Rc8 25. Rc1 Rc7 26. Qf2 Rfc8 27. Qa2 Rc6 28. Qb3 Qc7 29. d5 Rd6 30. Rd1 Rcd8 31. Qb5 Qd7 32. Qa6 exd5 33. cxd5 Rxd5 34. Rxd5 Qxd5 35. Qe2 Qd1+ 36. Qxd1 Rxd1+ 37. Kf2 Rc1 38. Rh5 Rxc3 39. a5 b5 40. Rxf5 Kg7 41. Rd5 Rc2+ 42. Kg3 Ra2 43. Rd7+ Kg6 44. Rxa7 b4 45. a6 b3 46. Rb7 c4 47. a7 Rxa7 48. Rxa7 c3 49. Ra3 c2 50. Rxb3 c1=Q 51. h3 Qg1 52. h4 h5 53. Ra3 Qc1 54. Rb3 Qd1 55. Rb8 Qg4+ 56. Kf2 Qxh4+ 57. Kf1 Qh1+ 58. Kf2 Qc1 {0-} 0-1

[Event "45th FIDE Olympiad 2024"]
[Site "Budapest"]
[Date "2024.09.15"]
[Round "5.21"]
[White "Maghsoodloo, Parham"]
[Black "Rodrigue-Lemieux, Shawn"]
[Result "1-0"]
[ECO "A18"]
[WhiteElo "2723"]
[BlackElo "2509"]
[Annotator "TA"]
[PlyCount "79"]
[EventDate "2024.09.05"]
[EventType "team-tourn"]
[EventCountry "HUN"]
[SourceTitle "playchess.com"]
[Source "ChessBase"]
[SourceQuality "1"]
[WhiteTeam "Iran"]
[BlackTeam "Canada"]
[WhiteTeamCountry "IRI"]
[BlackTeamCountry "CAN"]
[TimeControl "40/5400+30:1800+30"]

{[%evp 13,79,14,12,22,19,18,22,29,18,27,32,29,68,14,0,10,9,10,28,19,55,51,60,62,83,63,110,119,97,102,111,97,105,95,106,97,183,179,191,184,197,198,423,405,417,437,407,289,325,0,266,267,287,295,297,309,309,305,653,548,533,535,643,690,1339,935,2045,1855]} 1. c4 {[%emt 0:01:24]} Nf6 {[%emt 0:00:14]} 2. Nc3 {[%emt 0:00:10]} e6 {[%emt 0:00:06]} 3. e4 {[%emt 0:00:06]} d5 {[%emt 0:00:07]} 4. cxd5 {[%emt 0:00:14]} exd5 {[%emt 0:00:05]} 5. e5 {[%emt 0:00:12]} d4 {[%emt 0:02:51]} 6. exf6 {[%emt 0:00:10]} dxc3 {[%emt 0:00:05]} 7. fxg7 {[%emt 0:03:32]} cxd2+ {[%emt 0:00:28]} 8. Bxd2 {[%emt 0:00:07]} Bxg7 {[%emt 0:00:07][%cal Ob8c6]} 9. Bc4 {[%emt 0:00:03]} O-O {[%emt 0:05:27][%cal Oc8f5]} 10. Ne2 {[%emt 0:01:28] The position is equal.} Nc6 {[%emt 0:16:00][%cal Oc6e5]} 11. O-O {[%emt 0:00:27]} Bf5 {[%emt 0:09:28] Wards off Qc2} 12. Qc1 {[%emt 0:14:16]} Ne5 {[%emt 0:07:10] And now ...Nxc4 would win.} 13. Bg5 {[%emt 0:03:46]} (13. Bc3 $1 $14) 13... Qd6 $11 {[%emt 0:02:55]} 14. Ng3 {[%emt 0:08:37]} Bg6 {[%emt 0:00:29]} 15. Rd1 {[%emt 0:00:32]} Qb6 {[%emt 0:06:12]} 16. Be3 {[%emt 0:02:10]} Qc6 {[%emt 0:03:29]} 17. Be2 {[%emt 0:06:35]} Qxc1 {[%emt 0:07:36]} 18. Raxc1 {[%emt 0:00:10]} (18. Rdxc1 Nc6 $11) 18... Nc6 {[%emt 0:00:13]} 19. h4 $36 {[%emt 0:06:01][%cal Bh2h4,Bh4h5][%mdl 2080] h5 is the strong threat. White fights for an advantage.} h6 {[%emt 0:03:34]} (19... Rad8 $14 {might be stronger.}) 20. h5 $16 {[%emt 0:02:17] White is more active.} Bh7 {[%emt 0:00:44] [#]} 21. b4 $1 {[%emt 0:03:16]} a6 {[%emt 0:13:29]} (21... Rfd8 22. Bf3) 22. a4 {[%emt 0:04:43]} Rfd8 {[%emt 0:05:23] [#]} 23. Rxd8+ $1 {[%emt 0:01:53]} Rxd8 {[%emt 0:00:25]} 24. Bxa6 $1 {[%emt 0:00:14]} Bb2 {[%emt 0:05:53]} (24... Nxb4 $16 25. Bxb7 Nc2) 25. Rc5 $18 {[%emt 0:01:07]} (25. Bxb7 Bxc1 (25... Nxb4 $2 26. Rc4 $18) 26. Bxc6 Rd1+ 27. Kh2 Bxe3 28. fxe3 Rc1 $17) 25... Rd1+ {[%emt 0:00:27]} 26. Kh2 {[%emt 0:00:05]} Nxb4 {[%emt 0:01:29]} 27. Bxb7 {[%emt 0:03:05][%cal Oa4a5] Strongly threatening a5!} Ra1 $2 {[%emt 0:00:48]} (27... Bd4) 28. Rxc7 {[%emt 0:00:42]} ({Weaker is} 28. Bxh6 Rxa4 29. Rxc7 Bd3 30. Rc8+ Kh7 $18) 28... Kg7 {[%emt 0:02:05]} 29. Rc4 {[%emt 0:00:28]} Nd3 {[%emt 0:00:26]} 30. Rg4+ {[%emt 0:01:50]} Kh8 {[%emt 0:00:25]} 31. Rc4 $2 {[%emt 0:00:11]} ({Less strong is} 31. Bxh6 Be5 $16) (31. f3 $18) 31... Ne5 $2 {[%emt 0:01:27][%mdl 8192]} (31... Kg7 $1 $11 {and Black stays safe.} 32. f4 Kg8) 32. Rh4 {[%emt 0:01:53]} Kg7 {[%emt 0:01:21]} 33. Bc8 {[%emt 0:00:21]} Bc2 {[%emt 0:01:05]} 34. Nf5+ {[%emt 0:00:54]} Kh7 {[%emt 0:00:22]} 35. Nxh6 {[%emt 0:00:48]} Bxa4 $2 {[%emt 0:00:27]} (35... Rxa4 36. Bf5+ Kg7) 36. Bf5+ {[%emt 0:00:19] White is clearly winning.} Kg7 {[%emt 0:00:22]} 37. Rh3 {[%emt 0:00:27] Rg3+ would now be deadly.} Kf6 {[%emt 0:01:44]} 38. Rg3 {[%emt 0:00:18] aiming for Bg5+.} Bc1 {[%emt 0:00:08]} 39. f4 {[%emt 0:01:08]} Nc6 {[%emt 0:00:34] [#]} 40. Rg5 $1 {[%emt 0:00:22] Weighted Error Value: White=0.17 (very precise) /Black=0.45.  Loses game:     	---       	Black=1      Missed win:     	White=1     	---        Mistake:       	White=1     	Black=4      Inaccurate:     	---       	Black=3      OK:         	White=16    	Black=10     Best:        	White=3     	Black=2      Strong:       	White=2     	---} 1-0

[Event "45th FIDE Olympiad 2024"]
[Site "Budapest"]
[Date "2024.09.15"]
[Round "5.21"]
[White "Than, Min Hlaing"]
[Black "Alrehaili, Ahmed Abdullah S"]
[Result "0-1"]
[ECO "E94"]
[WhiteElo "2121"]
[BlackElo "2117"]
[PlyCount "100"]
[EventDate "2024.09.05"]
[EventType "team-tourn"]
[EventCountry "HUN"]
[WhiteTeam "Myanmar"]
[BlackTeam "Saudi Arabia"]
[WhiteTeamCountry "MYA"]
[BlackTeamCountry "SAU"]
[TimeControl "40/5400+30:1800+30"]

1. Nf3 Nf6 2. c4 g6 3. Nc3 Bg7 4. e4 d6 5. d4 O-O 6. Be2 Nbd7 7. O-O e5 8. Be3 Qe7 9. d5 c5 10. dxc6 bxc6 11. Qd2 Nc5 12. Bg5 Bg4 13. h3 Bxf3 14. Bxf3 a5 15. Rfe1 Ne6 16. Be3 Nd7 17. Bd1 Ndc5 18. f3 Rfb8 19. Na4 Rb4 20. Nxc5 dxc5 21. a3 Rbb8 22. Ba4 Rd8 23. Qf2 Rac8 24. Red1 Rd4 25. b3 h5 26. Qe1 Rcd8 27. Bxc6 Rd3 28. Rab1 Rxe3 29. Qxe3 Rd4 30. Bd5 Nf4 31. Rxd4 Qg5 32. Qd2 exd4 33. Kf1 d3 34. e5 Bxe5 35. Re1 Bd4 36. Re4 Qxg2+ 37. Qxg2 Nxg2 38. Rxd4 Ne3+ 39. Kf2 cxd4 40. Ke1 g5 41. Kd2 Nxd5 42. cxd5 f5 43. b4 axb4 44. a4 b3 45. Kxd3 g4 46. fxg4 f4 47. a5 b2 48. Kc2 f3 49. a6 f2 50. a7 b1=Q+ {0-} 0-1